Workbook

Sheet 收入支出决算总表
A1: 收入支出决算总表 | C1: 收入支出决算总表
F2: 公开01表
A3: 部门：岳阳县畜牧水产发展服务中心 | F3: 金额单位：万元
A4: 收入 | D4: 支出
A5: 项目 | B5: 行次 | C5: 金额 | D5: 项目 | E5: 行次 | F5: 金额
A6: 栏次 | C6: 1 | D6: 栏次 | F6: 2
A7: 一、一般公共预算财政拨款收入 | B7: 1 | C7: =892.13+112.54+67.51+111.72+118.88+75.65+137.01 -> 1,515.44 | D7: 一、一般公共服务支出 | E7: 32
A8: 二、政府性基金预算财政拨款收入 | B8: 2 | D8: 二、外交支出 | E8: 33
A9: 三、国有资本经营预算财政拨款收入 | B9: 3 | D9: 三、国防支出 | E9: 34
A10: 四、上级补助收入 | B10: 4 | D10: 四、公共安全支出 | E10: 35
A11: 五、事业收入 | B11: 5 | D11: 五、教育支出 | E11: 36
A12: 六、经营收入 | B12: 6 | D12: 六、科学技术支出 | E12: 37
A13: 七、附属单位上缴收入 | B13: 7 | D13: 七、文化旅游体育与传媒支出 | E13: 38
A14: 八、其他收入 | B14: 8 | C14: =4702.54+25.23+234.97+50.97+102.05+423.65+77.87 -> 5,617.28 | D14: 八、社会保障和就业支出 | E14: 39 | F14: =8.9 -> 8.90
B15: 9 | D15: 九、卫生健康支出 | E15: 40 | F15: =5.26 -> 5.26
B16: 10 | D16: 十、节能环保支出 | E16: 41 | F16: 1,135.01
B17: 11 | D17: 十一、城乡社区支出 | E17: 42
B18: 12 | D18: 十二、农林水支出 | E18: 43 | F18: =3853.66+137.77+302.48+162.69+195.78+499.3+214.88 -> 5,366.56
B19: 13 | D19: 十三、交通运输支出 | E19: 44
B20: 14 | D20: 十四、资源勘探工业信息等支出 | E20: 45
B21: 15 | D21: 十五、商业服务业等支出 | E21: 46 | F21: 606.00
B22: 16 | D22: 十六、金融支出 | E22: 47
B23: 17 | D23: 十七、援助其他地区支出 | E23: 48
B24: 18 | D24: 十八、自然资源海洋气象等支出 | E24: 49
B25: 19 | D25: 十九、住房保障支出 | E25: 50 | F25: =10.99 -> 10.99
B26: 20 | D26: 二十、粮油物资储备支出 | E26: 51
B27: 21 | D27: 二十一、国有资本经营预算支出 | E27: 52
B28: 22 | D28: 二十二、灾害防治及应急管理支出 | E28: 53
B29: 23 | D29: 二十三、其他支出 | E29: 54
B30: 24 | D30: 二十四、债务还本支出 | E30: 55
B31: 25 | D31: 二十五、债务付息支出 | E31: 56
B32: 26 | D32: 二十六、抗疫特别国债安排的支出 | E32: 57
A33: 本年收入合计 | B33: 27 | C33: =SUM(C7:C14) -> 7,132.72 | D33: 本年支出合计 | E33: 58 | F33: =F14+F15+F16+F18+F21+F25 -> 7,132.72
A34: 使用非财政拨款结余 | B34: 28 | D34: 结余分配 | E34: 59
A35: 年初结转和结余 | B35: 29 | C35: 0.00 | D35: 年末结转和结余 | E35: 60
B36: 30 | E36: 61
A37: 总计 | B37: 31 | C37: =C33 -> 7,132.72 | D37: 总计 | E37: 62 | F37: =F33 -> 7,132.72
A38: 注：1.本表反映部门本年度的总收支和年末结转结余情况。
A39: 2.本套报表金额单位转换时可能存在尾数误差。
C41: — 1 —

Sheet 收入决算表
A1: 收入决算表 | F1: 收入决算表
K2: 公开02表
A3: 部门：岳阳县畜牧水产发展服务中心 | K3: 金额单位：万元
A4: 项目 | D4: 科目名称 | E4: 本年收入合计 | F4: 财政拨款收入 | G4: 上级补助收入 | H4: 事业收入 | I4: 经营收入 | J4: 附属单位上缴收入 | K4: 其他收入
A5: 功能分类科目编码 | D5: 科目名称 | K5: 小计
A8: 栏次 | B8: 款 | C8: 项 | D8: 栏次 | E8: 1 | F8: 2 | G8: 3 | H8: 4 | I8: 5 | J8: 6 | K8: 7
A9: 合计 | D9: 合计 | E9: =SUM(F9:K9) -> 7,132.72 | F9: =SUM(F10:F19) -> 1,515.44 | G9: 0.00 | H9: 0.00 | I9: 0.00 | J9: 0.00 | K9: 5,617.28
A10: 2110302 | D10: 水体 | E10: 1,135.01 | K10: 1,135.01
A11: 2130108 | D11: 病虫害控制 | E11: 1,840.30 | K11: 1,840.30
A12: 2130199 | D12: 其他农业农村支出 | E12: 2,682.93 | F12: =892.13+112.54+67.51+111.72+9.2+10-0.01 -> 1,203.09 | K12: =1121.23+25.23+234.97+50.96+27.88+19.56+0.01 -> 1,479.84
A13: 2160299 | D13: 其他商业流通事务支出 | E13: 606.00 | K13: 606.00
A14: 2080505 | D14: 机关事业单位基本养老保险缴费支出 | E14: 8.73 | F14: =8.73 -> 8.73
A15: 2089999 | D15: 其他社会保障和就业支出 | E15: 0.17 | F15: =0.17 -> 0.17
A16: 2101102 | D16: 事业单位医疗 | E16: 4.13 | F16: =4.13 -> 4.13
A17: 2101103 | D17: 公务员医疗补助 | E17: 1.13 | F17: =1.13 -> 1.13
A18: 2130104 | D18: 事业运行 | E18: 843.33 | F18: =84.54+75.65+127.01 -> 287.2 | K18: =74.17+423.65+58.31 -> 556.13
A19: 2210201 | D19: 住房公积金 | E19: 10.99 | F19: =10.99 -> 10.99
A22: 注：本表反映部门本年度取得的各项收入情况。
F24: —2.%d —

Sheet 支出决算表
A1: 支出决算表 | F1: 支出决算表
J2: 公开03表
A3: 部门：岳阳县畜牧水产发展服务中心 | J3: 金额单位：万元
A4: 项目 | D4: 科目名称 | E4: 本年支出合计 | F4: 基本支出 | G4: 项目支出 | H4: 上缴上级支出 | I4: 经营支出 | J4: 对附属单位补助支出
A5: 功能分类科目编码 | D5: 科目名称
A8: 栏次 | B8: 款 | C8: 项 | D8: 栏次 | E8: 1 | F8: 2 | G8: 3 | H8: 4 | I8: 5 | J8: 6
A9: 合计 | E9: =SUM(F9:G9) -> 7,132.72 | F9: =SUM(F10:F19) -> 2,229.35 | G9: =SUM(G10:G19) -> 4,903.37
A10: 2110302 | D10: 水体 | E10: =SUM(F10:G10) -> 1,135.01 | F10: 0.00 | G10: 1,135.01
A11: 2130108 | D11: 病虫害控制 | E11: 1,840.30 | F11: 0.00 | G11: 1,840.30
A12: 2130199 | D12: 其他农业农村支出 | E12: 2,682.93 | F12: =892.13+137.77+202.06+111.72+17.19 -> 1,360.87 | G12: =1121.23+100.42+50.97+19.88+29.56 -> 1,322.06
A13: 2160299 | D13: 其他商业流通事务支出 | E13: 606.00 | F13: 0.00 | G13: 606.00
A14: 2080505 | D14: 机关事业单位基本养老保险缴费支出 | E14: 8.73 | F14: =8.73 -> 8.73
A15: 2089999 | D15: 其他社会保障和就业支出 | E15: 0.17 | F15: =0.17 -> 0.17
A16: 2101102 | D16: 事业单位医疗 | E16: 4.13 | F16: =4.13 -> 4.13
A17: 2101103 | D17: 公务员医疗补助 | E17: 1.13 | F17: =1.13 -> 1.13
A18: 2130104 | D18: 事业运行 | E18: 843.33 | F18: =158.71+499.3+185.32 -> 843.33
A19: 2210201 | D19: 住房公积金 | E19: 10.99 | F19: =10.99 -> 10.99
A22: 注：本表反映部门本年度各项支出情况。
F24: — 3.%d —

Sheet 财政拨款收入支出决算总表
A1: 财政拨款收入支出决算总表 | D1: 财政拨款收入支出决算总表
I2: 公开04表
A3: 部门：岳阳县畜牧水产发展服务中心 | I3: 金额单位：万元
A4: 收 入 | D4: 支 出
A5: 项目 | B5: 行次 | C5: 金额 | D5: 项目 | E5: 行次 | F5: 合计 | G5: 一般公共预算财政拨款 | H5: 政府性基金预算财政拨款 | I5: 国有资本经营预算财政拨款
F6: 小计 | G6: 一般公共预算财政拨款 | H6: 政府性基金预算财政拨款
A7: 栏次 | C7: 1 | D7: 栏次 | F7: 2 | G7: 3 | H7: 4 | I7: 5
A8: 一、一般公共预算财政拨款 | B8: 1 | C8: =892.13+112.54+67.51+111.72+118.88+75.65+137.01 -> 1,515.44 | D8: 一、一般公共服务支出 | E8: 33
A9: 二、政府性基金预算财政拨款 | B9: 2 | D9: 二、外交支出 | E9: 34
A10: 三、国有资本经营财政拨款 | B10: 3 | D10: 三、国防支出 | E10: 35
B11: 4 | D11: 四、公共安全支出 | E11: 36
B12: 5 | D12: 五、教育支出 | E12: 37
B13: 6 | D13: 六、科学技术支出 | E13: 38
B14: 7 | D14: 七、文化旅游体育与传媒支出 | E14: 39
B15: 8 | D15: 八、社会保障和就业支出 | E15: 40 | F15: =G15 -> 8.9 | G15: =8.9 -> 8.9
B16: 9 | D16: 九、卫生健康支出 | E16: 41 | F16: =G16 -> 5.26 | G16: =5.26 -> 5.26
B17: 10 | D17: 十、节能环保支出 | E17: 42
B18: 11 | D18: 十一、城乡社区支出 | E18: 43
B19: 12 | D19: 十二、农林水支出 | E19: 44 | F19: =892.13+112.54+67.51+111.72+93.73+75.65+137.01 -> 1,490.29 | G19: =892.13+112.54+67.51+111.72+93.73+75.65+137.01 -> 1,490.29
B20: 13 | D20: 十三、交通运输支出 | E20: 45
B21: 14 | D21: 十四、资源勘探工业信息等支出 | E21: 46
B22: 15 | D22: 十五、商业服务业等支出 | E22: 47
B23: 16 | D23: 十六、金融支出 | E23: 48
B24: 17 | D24: 十七、援助其他地区支出 | E24: 49
B25: 18 | D25: 十八、自然资源海洋气象等支出 | E25: 50
B26: 19 | D26: 十九、住房保障支出 | E26: 51 | F26: =G26 -> 10.99 | G26: =10.99 -> 10.99
B27: 20 | D27: 二十、粮油物资储备支出 | E27: 52
B28: 21 | D28: 二十一、国有资本经营预算支出 | E28: 53
B29: 22 | D29: 二十二、灾害防治及应急管理支出 | E29: 54
B30: 23 | D30: 二十三、其他支出 | E30: 55
B31: 24 | D31: 二十四、债务还本支出 | E31: 56
B32: 25 | D32: 二十五、债务付息支出 | E32: 57
B33: 26 | D33: 二十六、抗疫特别国债安排的支出 | E33: 58
A34: 本年收入合计 | B34: 27 | C34: =SUM(C8:C10) -> 1,515.44 | D34: 本年支出合计 | E34: 59 | F34: =SUM(F8:F33) -> 1,515.44 | G34: =SUM(G8:G33) -> 1,515.44
A35: 年初财政拨款结转和结余 | B35: 28 | D35: 年末财政拨款结转和结余 | E35: 60
A36: 一般公共预算财政拨款 | B36: 29 | E36: 61
A37: 政府性基金预算财政拨款 | B37: 30 | E37: 62
A38: 国有资本经营预算财政拨款 | B38: 31 | E38: 63
A39: 总计 | B39: 32 | C39: =C34 -> 1515.44 | D39: 总计 | E39: 64 | F39: =F34 -> 1,515.44 | G39: =G34 -> 1,515.44
A40: 注：本表反映部门本年度一般公共预算财政拨款、政府性基金预算财政拨款和国有资本经营预算财政拨款的总收支和年末结转结余情况。
A41: 2.本表以“万元”为金额单位（保留两位小数）。
D43: — 4 —

Sheet 一般公共预算财政拨款支出决算表
A1: 一般公共预算财政拨款支出决算表 | E1: 一般公共预算财政拨款支出决算表
G2: 公开05表
A3: 部门：岳阳县畜牧水产发展服务中心 | G3: 金额单位：万元
A4: 项目 | D4: 科目名称 | E4: 本年支出
A5: 功能分类科目编码 | D5: 科目名称 | E5: 小计 | F5: 基本支出 | G5: 项目支出
F6: 小计 | G6: 小计
A8: 栏次 | B8: 款 | C8: 项 | D8: 栏次 | E8: 1 | F8: 2 | G8: 3
A9: 合计 | E9: =SUM(E10:E16) -> 1,515.44 | F9: =SUM(F10:F16) -> 1,504.17 | G9: =SUM(G10:G16) -> 11.27
A10: 2130199 | D10: 其他农业农村支出 | E10: =SUM(F10:G10) -> 1,203.09 | F10: =892.13+112.54+66.24+111.72+9.19 -> 1,191.82 | G10: =1.27+10 -> 11.27
A11: 2080505 | D11: 机关事业单位基本养老保险缴费支出 | E11: =SUM(F11:G11) -> 8.73 | F11: =8.73 -> 8.73
A12: 2089999 | D12: 其他社会保障和就业支出 | E12: 0.17 | F12: =0.17 -> 0.17
A13: 2101102 | D13: 事业单位医疗 | E13: 4.13 | F13: =4.13 -> 4.13
A14: 2101103 | D14: 公务员医疗补助 | E14: 1.13 | F14: =1.13 -> 1.13
A15: 2130104 | D15: 事业运行 | E15: 287.20 | F15: =84.54+75.65+127.01 -> 287.2
A16: 2210201 | D16: 住房公积金 | E16: 10.99 | F16: =10.99 -> 10.99
A17: 注：本表反映部门本年度一般公共预算财政拨款支出情况。
E19: — 5.%d —

Sheet 一般公共预算财政拨款基本支出决算表
A1: 一般公共预算财政拨款基本支出决算表 | E1: 一般公共预算财政拨款基本支出决算表
I2: 公开06表
A3: 部门：岳阳县畜牧水产发展服务中心 | I3: 金额单位：万元
A4: 人员经费 | D4: 公用经费
A5: 经济分类科目编码 | B5: 科目名称 | C5: 决算数 | D5: 经济分类科目编码 | E5: 科目名称 | F5: 决算数 | G5: 经济分类科目编码 | H5: 科目名称 | I5: 决算数
A7: 301 | B7: 工资福利支出 | C7: =SUM(C8:C20) -> 842.94 | D7: 302 | E7: 商品和服务支出 | F7: =SUM(F8:F34) -> 592.90 | G7: 307 | H7: 债务利息及费用支出 | I7: 0
A8: 30101 | B8: 基本工资 | C8: =99.23+30.3+21.53+33.93+41.12+29.76+42.71 -> 298.58 | D8: 30201 | E8: 办公费 | F8: =26.26+2.5+0.9+0.7+1.45+2.48+0.77 -> 35.06 | G8: 30701 | H8: 国内债务付息
A9: 30102 | B9: 津贴补贴 | C9: =52.23+1.09 -> 53.32 | D9: 30202 | E9: 印刷费 | F9: =16.42+1.5+2.15+1.58+0.71 -> 22.36 | G9: 30702 | H9: 国外债务付息
A10: 30103 | B10: 奖金 | C10: =23.85+1.18+1.19+0.71+7.66 -> 34.59 | D10: 30203 | E10: 咨询费 | F10: 0.00 | G10: 310 | H10: 资本性支出 | I10: =SUM(I11:I26) -> 12.7
A11: 30106 | B11: 伙食补助费 | C11: 0.96 | D11: 30204 | E11: 手续费 | F11: 0.00 | G11: 31001 | H11: 房屋建筑物购建
A12: 30107 | B12: 绩效工资 | C12: =3.12+24.04+15.76+27.37+30.1+14.95+43.89 -> 159.23 | D12: 30205 | E12: 水费 | F12: =1.84+0.24 -> 2.08 | G12: 31002 | H12: 办公设备购置 | I12: 0.42
A13: 30108 | B13: 机关事业单位基本养老保险缴费 | C13: =21.73+8.11+2.67+6.82+8.73+6.5+9.48 -> 64.04 | D13: 30206 | E13: 电费 | F13: 10.50 | G13: 31003 | H13: 专用设备购置 | I13: 12.28
A14: 30109 | B14: 职业年金缴费 | C14: =0.4+0.1+2.93 -> 3.43 | D14: 30207 | E14: 邮电费 | F14: =0.9+0.19 -> 1.09 | G14: 31005 | H14: 基础设施建设
A15: 30110 | B15: 职工基本医疗保险缴费 | C15: =11.5+4.38+1.55+3.62+4.13+6+4.86 -> 36.04 | D15: 30208 | E15: 取暖费 | F15: 0.00 | G15: 31006 | H15: 大型修缮
A16: 30111 | B16: 公务员医疗补助缴费 | C16: =2.68+0.81+0.47+0.43+1.13+0.61 -> 6.13 | D16: 30209 | E16: 物业管理费 | F16: 0.55 | G16: 31007 | H16: 信息网络及软件购置更新
A17: 30112 | B17: 其他社会保障缴费 | C17: =0.66+0.14+0.09+0.2+0.17+0.32 -> 1.58 | D17: 30211 | E17: 差旅费 | F17: =2.77+2.91+0.02+1.66+1.01 -> 8.37 | G17: 31008 | H17: 物资储备
A18: 30113 | B18: 住房公积金 | C18: =19+6.49+3.83+7.39+10.99+5.37+11.66 -> 64.73 | D18: 30212 | E18: 因公出国（境）费用 | F18: 0.00 | G18: 31009 | H18: 土地补偿
A19: 30114 | B19: 医疗费 | D19: 30213 | E19: 维修（护）费 | F19: =15.77+6.63+0.03+11.51+0.14 -> 34.08 | G19: 31010 | H19: 安置补助
A20: 30199 | B20: 其他工资福利支出 | C20: =84.75+5.44+2.16+14.14+6.67+7.15 -> 120.31 | D20: 30214 | E20: 租赁费 | F20: 0.00 | G20: 31011 | H20: 地上附着物和青苗补偿
A21: 303 | B21: 对个人和家庭的补助 | C21: =SUM(C22:C33) -> 55.63 | D21: 30215 | E21: 会议费 | F21: 10.88 | G21: 31012 | H21: 拆迁补偿
A22: 30301 | B22: 离休费 | D22: 30216 | E22: 培训费 | F22: =1.7+0.2+0.11+1.8+0.27 -> 4.08 | G22: 31013 | H22: 公务用车购置
A23: 30302 | B23: 退休费 | C23: 44.75 | D23: 30217 | E23: 公务接待费 | F23: =7.27+2.91+0.99+1.53+1.2+1.2 -> 15.10 | G23: 31019 | H23: 其他交通工具购置
A24: 30303 | B24: 退职（役）费 | D24: 30218 | E24: 专用材料费 | F24: 272.65 | G24: 31021 | H24: 文物和陈列品购置
A25: 30304 | B25: 抚恤金 | C25: 0.21 | D25: 30224 | E25: 被装购置费 | F25: 0.00 | G25: 31022 | H25: 无形资产购置
A26: 30305 | B26: 生活补助 | C26: 4.55 | D26: 30225 | E26: 专用燃料费 | F26: 0.00 | G26: 31099 | H26: 其他资本性支出
A27: 30306 | B27: 救济费 | C27: 0.50 | D27: 30226 | E27: 劳务费 | F27: =13.57+0.12+0.1 -> 13.79 | G27: 399 | H27: 其他支出 | I27: 0
A28: 30307 | B28: 医疗费补助 | D28: 30227 | E28: 委托业务费 | F28: =21.34+14.62+1.08 -> 37.04 | G28: 39907 | H28: 国家赔偿费用支出
A29: 30308 | B29: 助学金 | C29: 0.10 | D29: 30228 | E29: 工会经费 | F29: 32.48 | G29: 39908 | H29: 对民间非营利组织和群众性自治组织补贴
A30: 30309 | B30: 奖励金 | C30: 4.26 | D30: 30229 | E30: 福利费 | F30: 18.43 | G30: 39909 | H30: 经常性赠与
A31: 30310 | B31: 个人农业生产补贴 | D31: 30231 | E31: 公务用车运行维护费 | F31: 0.00 | G31: 39910 | H31: 资本性赠与
A32: 30311 | B32: 代缴社会保险费 | D32: 30239 | E32: 其他交通费用 | F32: =23.68+0.07+0.03+0.03+0.92 -> 24.73 | G32: 39999 | H32: 其他支出
A33: 30399 | B33: 其他对个人和家庭的补助 | C33: =1.26 -> 1.26 | D33: 30240 | E33: 税金及附加费用 | F33: 0.00
D34: 30299 | E34: 其他商品和服务支出 | F34: =40.5+9+0.14 -> 49.64
A35: 人员经费合计 | C35: =C7+C21 -> 898.57 | D35: 公用经费合计 | I35: =F7+I7+I10+I27 -> 605.60
A36: 注：本表反映部门本年度一般公共预算财政拨款基本支出明细情况。
E38: — 6 —

Sheet 政府性基金预算财政拨款收入支出决算表
A1: 政府性基金预算财政拨款收入支出决算表 | F1: 政府性基金预算财政拨款收入支出决算表
J2: 公开07表
A3: 部门：岳阳县畜牧水产发展服务中心 | J3: 金额单位：万元
A4: 项 目 | D4: 科目名称 | E4: 年初结转和结余 | F4: 本年收入 | G4: 本年支出 | J4: 年末结转和结余
A5: 功能分类科目编码 | D5: 科目名称 | E5: 合计 | F5: 合计 | G5: 小计 | H5: 基本支出 | I5: 项目支出 | J5: 合计
A6: 栏 次 | B6: 款 | C6: 项 | D6: 栏次 | E6: 1 | F6: 2 | G6: 3 | H6: 4 | I6: 5 | J6: 6
A7: 合 计 | D7: 合计
A14: 注：本表反映部门本年度政府性基金预算财政拨款收入、支出及结转和结余情况。

Sheet 国有资本经营预算财政拨款支出决算表
A1: 国有资本经营预算财政拨款支出决算表 | E1: 国有资本经营预算财政拨款支出决算表
G2: 公开08表
A3: 部门：岳阳县畜牧水产发展服务中心 | G3: 金额单位：万元
A4: 项目 | D4: 科目名称 | E4: 本年支出
A5: 功能分类科目编码 | D5: 科目名称 | E5: 合计 | F5: 基本支出 | G5: 项目支出
D7: 科目名称
A8: 栏次 | B8: 款 | C8: 项 | D8: 栏次 | E8: 3
A9: 合计 | D9: 合计 | E9: 0
A16: 注：本表反映部门本年度国有资本经营预算财政拨款收入、支出及结转和结余情况。
E20: — 8.%d —

Sheet 财政拨款“三公"经费支出决算表
A1: 财政拨款“三公"经费支出决算表 | G1: 财政拨款“三公"经费支出决算表
L2: 公开09表
A3: 部门：岳阳县畜牧水产发展服务中心 | L3: 金额单位：万元
A4: 预算数 | D4: 公用经费 | G4: 决算数
A5: 合计 | B5: 因公出国（境）费 | C5: 公务用车购置及运行费 | D5: 经济分类科目编码 | E5: 科目名称 | F5: 公务接待费 | G5: 合计 | H5: 因公出国（境）费 | I5: 公务用车购置及运行费 | L5: 公务接待费
A6: 301 | B6: 工资福利支出 | C6: 小计 | D6: 公务用车购置费 | E6: 公务用车运行费 | I6: 小计 | J6: 公务用车购置费 | K6: 公务用车运行费
A7: 1 | B7: 2 | C7: 3 | D7: 4 | E7: 5 | F7: 6 | G7: 7 | H7: 8 | I7: 9 | J7: 10 | K7: 11 | L7: 12
A8: =F8 -> 8.93 | F8: =0.3+2.91+2.99+1.53+1.2 -> 8.93 | G8: =L8 -> 13.90 | L8: =7.27+2.91+0.99+1.53+1.2 -> 13.90
A9: 注：本表反映部门本年度“三公”经费支出预决算情况。其中，预算数为“三公”经费全年预算数，反映按规定程序调整后的预算数；决算数是包括当年财政拨款和以前年度结转资金安排的实际支出。
G12: — 9 —
